bitfinex/quotes_ETHUSD_20240702
["timestamp","ask_amount","ask_price","bid_price","bid_amount"]
[1719891514823,1e-08,3461.0,3460.9,6.1629173]
[1719891516561,7.36,3462.0,3460.9,6.1629173]
[1719891516562,7.36,3462.0,3461.2,2.88911]
[1719891516878,2.88842,3462.1,3461.9,0.819]
[1719891517542,2.88842,3462.1,3461.7,0.819]
[1719891517850,2.4565,3462.0,3461.7,0.819]
[1719891521224,2.4565,3462.4,3461.7,0.819]
[1719891523432,2.4565,3462.4,3461.7,3.70773]
[1719891523663,2.4565,3462.4,3461.7,2.88873]
[1719891523832,2.4565,3462.4,3461.8,0.819]
[1719891524267,2.4565,3462.4,3461.8,3.70765]
[1719891525369,2.4565,3462.4,3461.9,2.88856]
[1719891540566,2.88809,3462.5,3461.9,2.88856]
[1719891543072,2.4201,3462.6,3462.1,2.88834]
[1719891543276,2.4201,3462.6,3462.2,2.88831]
[1719891544971,2.88784,3462.8,3462.2,2.88831]
[1719891545190,5.15624,3462.8,3462.2,5.16801]
[1719891546862,2.2684,3462.8,3462.2,5.69219617]
[1719891547063,2.88772,3463.0,3462.3,3.70724]
[1719891547265,2.88772,3463.0,3462.7,0.819]
[1719891547655,5.29483,3463.2,3462.5,0.819]
[1719891548556,2.88763,3463.1,3462.5,0.819]
[1719891548762,2.88767,3463.0,3462.5,0.819]
[1719891549079,2.88767,3463.0,3462.5,1.75893462]
[1719891551199,2.88767,3463.0,3462.5,0.819]
[1719891551571,2.88767,3463.0,3462.4,2.88815]
[1719891553508,2.88776,3462.9,3462.4,2.88815]
[1719891554425,2.88776,3462.9,3462.2,5.69219617]
[1719891554782,2.88776,3462.9,3462.3,0.819]
[1719891555099,2.88776,3462.9,3462.4,0.65111962]
[1719891555484,2.88786,3462.8,3462.4,0.65111962]
[1719891556626,5.17856,3462.8,3461.8,5.45986337]
[1719891556813,2.88808,3462.5,3461.8,5.98471]
[1719891559031,2.88808,3462.5,3461.8,3.0961]
[1719891559590,2.8882,3462.4,3461.8,3.0961]
[1719891559801,2.8882,3462.4,3461.9,0.887365]
[1719891562116,2.8882,3462.4,3462.0,0.819]
[1719891564737,2.8882,3462.4,3462.1,2.4813]
[1719891567722,2.8882,3462.4,3462.2,0.819]
[1719891568630,2.8882,3462.4,3462.1,2.4813]
[1719891568831,2.8882,3462.4,3462.2,0.33003]
[1719891569272,2.88801,3462.6,3462.2,0.33003]
[1719891569472,2.8881,3462.5,3462.2,0.33003]
[1719891569782,2.88796,3462.7,3462.4,0.819]
[1719891569943,2.88796,3462.7,3462.2,1.14903]
[1719891570283,2.88796,3462.7,3462.3,0.363033]
[1719891571376,2.88796,3462.7,3462.1,2.4813]
[1719891571874,2.88796,3462.7,3462.2,0.819]
[1719891573470,2.88775,3462.9,3462.4,0.819]
[1719891573656,2.88784,3462.8,3462.4,0.819]
[1719891574064,2.88784,3462.8,3462.5,2.4318]
[1719891574314,2.88784,3462.8,3462.5,2.75688]
[1719891574473,2.88776,3462.9,3462.5,2.75688]
[1719891576319,2.88776,3462.9,3462.5,2.4318]
[1719891576609,2.88752,3463.2,3462.5,2.4318]
[1719891576817,0.43236102,3463.1,3462.5,2.4318]
[1719891576990,2.88752,3463.2,3462.5,2.4318]
[1719891576991,2.88773,3463.0,3462.5,2.4318]
[1719891578618,2.88777,3462.9,3462.5,2.4318]
[1719891579235,5.15327,3462.9,3462.2,3.2313]
[1719891579444,2.88798,3462.7,3462.2,3.2313]
[1719891579596,2.88798,3462.7,3462.2,3.843279]
[1719891580248,2.88801,3462.6,3462.2,3.843279]
[1719891581295,2.88801,3462.6,3462.2,3.024279]
[1719891581600,2.88801,3462.6,3462.2,3.843279]
[1719891583091,2.88778,3462.9,3462.2,3.843279]
[1719891583092,2.88789,3462.8,3462.2,3.843279]
[1719891583297,2.88778,3462.9,3462.4,2.4845]
[1719891583609,2.88778,3462.9,3462.4,3.3035]
[1719891586545,2.88768,3463.0,3462.4,3.3035]
[1719891587830,2.88759,3463.1,3462.4,6.19166]
[1719891588030,2.88759,3463.1,3462.7,0.819]
[1719891588354,2.88759,3463.1,3462.5,3.3182]
[1719891588654,2.88742,3463.3,3462.6,0.71741532]
[1719891588655,2.88767,3463.0,3462.6,0.71741532]
[1719891589065,2.88767,3463.0,3462.5,2.4992]
[1719891593663,2.88767,3463.0,3462.6,0.819]
[1719891594707,2.88751,3463.2,3462.6,0.819]
[1719891594852,2.88742,3463.3,3463.0,3.0887]
[1719891596687,2.88725,3463.5,3463.0,3.0887]
[1719891598114,2.88733,3463.4,3463.0,3.0887]
[1719891598287,2.8873,3463.5,3463.0,2.867352]
[1719891598456,2.8873,3463.5,3463.0,2.2697]
[1719891600089,2.88734,3463.4,3463.0,2.2697]
[1719891601190,2.88752,3463.2,3462.8,0.819]
[1719891601401,2.88752,3463.2,3462.8,1.48737453]
[1719891602200,2.8876,3463.1,3462.8,0.66837453]
[1719891602494,2.88774,3463.0,3462.6,0.819]
[1719891603172,2.88774,3463.0,3462.5,2.2538]
[1719891603369,2.88774,3463.0,3462.7,0.819]
[1719891605690,2.88774,3463.0,3462.9,0.819]
[1719891605894,2.88774,3463.0,3462.9,3.1988]
[1719891606097,2.88752,3463.2,3462.9,3.1988]
[1719891607288,2.88728,3463.5,3463.1,0.819]
[1719891607484,2.88723,3463.6,3462.9,2.3798]
[1719891607682,2.88732,3463.5,3463.0,0.819]
[1719891608494,2.88734,3463.4,3463.0,0.819]
[1719891610289,2.88723,3463.6,3463.0,0.819]
[1719891610493,2.88723,3463.6,3463.2,0.819]
[1719891610859,2.88726,3463.5,3463.2,0.819]
[1719891612500,0.02596043,3463.4,3463.1,0.819]
[1719891612676,0.02596043,3463.4,3463.1,1.427654]
[1719891615311,2.91331043,3463.4,3463.1,1.427654]
[1719891615611,2.91331043,3463.4,3462.6,2.3446]
[1719891615612,2.88742,3463.3,3462.6,2.3446]
[1719891615899,2.88742,3463.3,3463.0,0.819]
[1719891616099,0.02598413,3463.2,3463.0,0.819]
[1719891616400,0.02598413,3463.2,3463.0,1.18969]
[1719891616603,2.88742,3463.3,3463.0,1.18969]
[1719891616990,0.02598413,3463.2,3463.0,1.18969]
[1719891617394,2.88742,3463.3,3463.0,1.18969]
[1719891617796,0.02598413,3463.2,3463.0,1.18969]
[1719891618305,2.88742,3463.3,3463.0,1.18969]
[1719891618684,2.88742,3463.3,3463.0,0.819]
[1719891618685,0.02598413,3463.2,3463.0,0.819]
[1719891619323,2.88742,3463.3,3463.0,0.819]
[1719891619808,0.02598413,3463.2,3463.0,0.819]
[1719891620004,2.88742,3463.3,3463.0,0.819]
[1719891620324,2.88742,3463.3,3463.0,2.2927]
[1719891620484,2.88742,3463.3,3463.1,0.819]
[1719891620805,2.8875,3463.2,3463.1,0.819]
[1719891621015,2.88759,3463.1,3462.8,0.819]
[1719891621624,2.88759,3463.1,3462.6,2.2927]
[1719891621932,2.88759,3463.1,3462.7,0.819]
[1719891622112,2.88759,3463.1,3462.7,1.45875598]
[1719891622404,2.88759,3463.1,3462.9,0.819]
[1719891622613,2.88766,3463.0,3462.5,3.0]
[1719891622790,2.88784,3462.8,3462.7,0.819]
[1719891623806,2.88784,3462.8,3462.3,3.29494035]
[1719891624014,2.88784,3462.8,3462.6,0.819]
[1719891624511,2.88814,3462.5,3462.3,0.819]
[1719891627395,0.02589275,3462.4,3462.3,0.819]
[1719891632146,0.02589275,3462.4,3462.0,3.0]
[1719891632442,0.02589275,3462.4,3462.3,0.819]
[1719891633342,2.91406275,3462.4,3462.3,0.819]
[1719891633929,2.91406275,3462.4,3462.0,3.0]
[1719891634139,2.91406275,3462.4,3462.3,0.819]
[1719891635039,0.02589275,3462.4,3462.3,0.819]
[1719891636409,2.91406275,3462.4,3462.3,0.819]
[1719891636735,0.02589275,3462.4,3462.3,0.819]
[1719891640640,0.02589275,3462.4,3462.3,3.2215]
[1719891640844,2.88784,3462.8,3462.3,3.84365]
[1719891641159,0.02584872,3462.7,3462.6,0.819]
[1719891641656,0.02585888,3462.7,3462.6,0.819]
[1719891641821,2.88784,3462.8,3462.6,0.819]
[1719891642155,2.88762,3463.1,3462.6,0.819]
[1719891642156,0.02585888,3462.7,3462.6,0.819]
[1719891642318,0.02585888,3462.7,3462.6,1.20914086]
[1719891642524,2.88751,3463.2,3462.6,1.75914086]
[1719891642742,2.88751,3463.2,3462.9,0.819]
[1719891643332,2.88751,3463.2,3463.1,0.819]
[1719891643945,2.88751,3463.2,3463.0,2.4079]
[1719891644257,2.88751,3463.2,3462.9,0.819]
[1719891645544,2.88727,3463.5,3462.9,1.52450309]
[1719891645545,2.88742,3463.3,3462.9,1.52450309]
[1719891645746,2.88727,3463.5,3463.2,0.819]
[1719891649885,2.88735,3463.4,3463.2,0.819]
[1719891650246,2.88735,3463.4,3463.0,0.819]
[1719891650955,2.88751,3463.2,3462.7,2.4079]
[1719891651138,2.88751,3463.2,3462.9,0.819]
[1719891651561,0.02612965,3463.1,3462.9,0.819]
[1719891652541,2.91371965,3463.1,3462.9,0.819]
[1719891656067,2.91371965,3463.1,3462.5,2.4279]
[1719891656269,2.88766,3463.0,3462.9,0.819]
[1719891656715,2.91378965,3463.0,3462.9,0.819]
[1719891658370,2.91378965,3463.0,3462.9,0.82045]
[1719891665691,0.02612965,3463.0,3462.9,0.82045]
[1719891665892,2.88756,3463.2,3462.9,0.82045]
[1719891666205,0.0261669,3463.1,3462.9,0.00145]
[1719891666412,0.0261669,3463.1,3463.0,0.819]
[1719891668243,2.9137469,3463.1,3462.9,0.00145]
[1719891668439,2.9137469,3463.1,3462.9,0.82045]
[1719891669556,2.9137469,3463.1,3462.9,0.00145]
[1719891669836,2.9137469,3463.1,3462.9,0.82045]
[1719891670002,2.9137469,3463.1,3462.9,0.00145]
[1719891670209,2.9137469,3463.1,3462.9,0.82045]
[1719891670647,5.77532,3463.0,3462.9,0.00145]
[1719891670866,8.12572,3463.0,3462.9,0.00145]
[1719891671356,8.15191735,3463.0,3462.9,0.00145]
[1719891671566,2.91385735,3463.0,3462.9,0.00145]
[1719891683286,5.80151735,3463.0,3462.9,0.00145]
[1719891683875,2.91385735,3463.0,3462.9,0.00145]
[1719891684901,5.80151735,3463.0,3462.9,0.00145]
[1719891685400,2.91385735,3463.0,3462.9,0.00145]
[1719891685774,5.80151735,3463.0,3462.9,0.00145]
[1719891689910,2.91385735,3463.0,3462.9,0.00145]
[1719891690310,5.80151735,3463.0,3462.9,0.00145]
[1719891692873,6.90012508,3463.0,3462.9,0.00145]
[1719891693073,9.15172508,3463.0,3462.9,0.00145]
[1719891696615,12.03938508,3463.0,3462.9,0.00145]
[1719891697902,6.90012508,3463.0,3462.9,0.00145]
[1719891698091,5.80151735,3463.0,3462.9,0.00145]
[1719891708237,2.91385735,3463.0,3462.9,0.00145]
[1719891717742,0.02619735,3463.0,3462.9,0.00145]
[1719891717944,0.02619735,3463.0,3462.9,0.82045]
[1719891718118,2.8875,3463.2,3462.9,0.82045]
[1719891718325,0.02609582,3463.1,3463.0,0.327265]
[1719891722221,0.02609582,3463.1,3463.0,3.430665]
[1719891722423,2.88722,3463.6,3463.0,3.71114593]
[1719891722628,0.02640711,3463.1,3463.0,2.89214593]
[1719891722823,2.88722,3463.6,3463.0,2.89214593]
[1719891722824,2.88722,3463.6,3463.0,3.71114593]
[1719891723030,2.88722,3463.6,3463.1,0.94880959]
[1719891723240,0.02640711,3463.5,3463.1,0.94880959]
[1719891723767,0.02640711,3463.5,3463.4,2.4779]
[1719891723991,0.02640711,3463.5,3463.4,3.2969]
[1719891724124,2.88697,3463.9,3463.4,3.2969]
[1719891724323,2.88697,3463.9,3463.6,0.819]
[1719891724324,0.02649171,3463.8,3463.6,0.819]
[1719891726327,0.02649171,3463.8,3463.7,2.3067]
[1719891726731,2.88659,3464.3,3463.7,2.3067]
[1719891726926,0.02657288,3464.2,3463.8,0.819]
[1719891727240,2.88659,3464.3,3463.8,0.819]
[1719891727465,0.02657288,3464.1,3463.8,0.819]
[1719891727771,2.88659,3464.3,3463.8,0.819]
[1719891727772,0.02657288,3464.0,3463.8,0.819]
[1719891728264,2.88659,3464.3,3463.8,0.819]
[1719891728471,0.02657288,3463.9,3463.8,0.819]
[1719891728629,2.88659,3464.3,3463.8,0.819]
[1719891728828,0.02657288,3463.9,3463.8,0.819]
[1719891729030,2.88671,3464.2,3463.8,0.819]
[1719891729263,0.02657288,3463.9,3463.8,0.819]
[1719891729636,2.88671,3464.2,3463.8,0.819]
[1719891729845,0.02657288,3463.9,3463.7,2.3067]
[1719891730168,0.02657288,3463.8,3463.7,3.38991646]
[1719891730344,2.88675,3464.1,3463.7,3.38991646]
[1719891730539,0.02659318,3464.0,3463.7,3.38991646]
[1719891733279,0.02659318,3464.0,3463.9,0.819]
[1719891733761,2.88659,3464.3,3463.9,0.819]
[1719891733956,0.1202842,3464.4,3464.2,0.819]
[1719891734269,0.1202842,3464.4,3464.3,0.60772567]
[1719891734678,0.1202842,3464.4,3464.3,0.55]
[1719891735158,0.1202842,3464.4,3464.3,3.49430348]
[1719891735576,0.1202842,3464.4,3464.3,5.95620348]
[1719891735777,0.1202842,3464.4,3464.3,7.25686633]
[1719891738598,2.94305427,3465.7,3464.8,2.2755]
[1719891738799,2.94305427,3465.7,3465.3,0.819]
[1719891738986,2.88561,3465.5,3465.3,0.819]
[1719891740398,2.88561,3465.5,3464.8,5.16164]
[1719891740597,2.88573,3465.4,3464.8,3.080297]
[1719891740902,2.88573,3465.4,3465.0,0.819]
[1719891741209,2.88573,3465.4,3465.2,0.819]
[1719891742210,2.88573,3465.4,3465.0,0.819]
[1719891742769,2.88573,3465.4,3465.0,3.3005]
[1719891742970,2.88573,3465.4,3465.0,3.9996537]
[1719891743303,2.88573,3465.4,3465.0,0.6991537]
[1719891743481,2.88573,3465.4,3465.0,0.819]
[1719891745810,2.88576,3465.3,3464.4,5.3738]
[1719891746140,2.88576,3465.3,3464.5,1.369]
[1719891746141,2.88592,3465.1,3464.5,1.369]
[1719891746425,2.88592,3465.1,3464.5,2.46200229]
[1719891746426,0.02661611,3465.0,3464.5,2.46200229]
[1719891746967,0.02661611,3465.0,3464.7,0.819]
[1719891747427,0.02661611,3465.0,3464.5,1.64300229]
[1719891747570,0.02661611,3465.0,3464.6,0.819]
[1719891747969,0.02661611,3465.0,3464.6,2.02129551]
[1719891750703,2.88584,3465.2,3464.6,2.02129551]
[1719891751201,0.02664991,3465.1,3464.6,2.02129551]
[1719891753413,0.02664991,3465.1,3464.7,5.21540108]
[1719891753711,2.88558,3465.6,3465.0,0.819]
[1719891753889,2.88558,3465.6,3465.0,0.87671324]
[1719891754086,0.02661611,3465.5,3465.1,0.43127932]
[1719891756331,0.02661611,3465.5,3465.3,0.819]
[1719891756619,2.88515,3466.1,3465.3,0.819]
[1719891756785,0.02581058,3465.4,3465.3,0.819]
[1719891756987,16.611611,3467.1,3465.3,0.819]
[1719891756988,2.88393,3467.5,3466.2,2.88497]
[1719891757198,0.819,3467.5,3466.3,5.71254884]
[1719891757377,2.3956,3467.6,3466.6,0.819]
[1719891757574,2.88411,3467.3,3466.6,0.819]
[1719891758012,2.88411,3467.3,3466.5,2.88473]
[1719891758212,5.27945,3467.6,3466.6,2.88462]
[1719891758402,5.27945,3467.6,3466.7,1.369]
[1719891758800,2.94163427,3467.4,3466.7,1.369]
[1719891758989,3.8456427,3467.4,3466.7,1.369]
[1719891759313,3.8456427,3467.4,3466.7,0.55]
[1719891759686,2.88408,3467.3,3466.5,2.88475]
[1719891759882,0.46647227,3467.2,3466.5,2.88475]
[1719891760208,0.46647227,3467.2,3466.6,0.55]
[1719891760691,2.88426,3467.1,3466.3,2.88491]
[1719891760874,2.88426,3467.1,3466.5,0.819]
[1719891761582,2.88426,3467.1,3466.1,2.88506]
[1719891761784,0.33507323,3467.0,3466.2,1.369]
[1719891762020,2.88442,3466.9,3466.2,0.55]
[1719891762230,2.88442,3466.9,3466.3,0.819]
[1719891762922,3.50716518,3466.9,3466.2,0.55]
[1719891763217,3.50716518,3466.9,3466.3,0.819]
[1719891763376,3.50716518,3466.9,3466.0,6.43516]
[1719891763585,3.50716518,3466.9,3466.3,0.819]
[1719891763785,3.50716518,3466.9,3466.0,6.43516]
[1719891763786,2.8845,3466.8,3466.0,6.43516]
[1719891764098,2.8845,3466.8,3466.4,0.819]
[1719891770803,2.8846,3466.7,3466.0,4.61557639]
[1719891771005,2.88467,3466.6,3466.0,4.61557639]
[1719891771205,2.88477,3466.5,3466.0,4.369]
[1719891771805,2.88477,3466.5,3466.0,0.55]
[1719891772003,2.88477,3466.5,3465.9,0.819]
[1719891772208,2.88477,3466.5,3466.0,0.55]
[1719891772853,2.88477,3466.5,3466.0,0.819]
[1719891773058,2.88477,3466.5,3466.1,0.55]
[1719891773222,2.88483,3466.4,3465.7,5.8854]
[1719891773422,2.88483,3466.4,3466.0,0.819]
[1719891774901,2.88467,3466.6,3466.0,0.819]
[1719891774902,2.88492,3466.3,3466.0,0.819]
[1719891775821,2.88492,3466.3,3465.7,3.0]
[1719891776166,2.88492,3466.3,3466.0,0.819]
[1719891780070,2.88502,3466.2,3465.8,0.55]
[1719891780215,2.88502,3466.2,3465.9,0.819]
[1719891780421,2.88508,3466.1,3465.8,0.55]
[1719891780630,2.88508,3466.1,3465.7,0.55]
[1719891780631,2.88524,3466.0,3465.7,0.55]
[1719891781161,2.88524,3466.0,3465.6,0.55]
[1719891781363,2.88525,3465.9,3465.5,0.55]
[1719891781684,2.88525,3465.9,3465.6,0.819]
[1719891781982,2.2829,3466.3,3465.8,0.819]
[1719891781983,2.88518,3466.0,3465.8,0.819]
[1719891782677,2.88509,3466.1,3465.9,2.4384]
[1719891782879,2.88509,3466.1,3465.5,3.88724]
[1719891783196,2.88509,3466.1,3465.8,0.819]
[1719891783969,2.88525,3465.9,3465.1,2.4384]
[1719891784149,2.88547,3465.7,3465.1,2.4384]
[1719891784349,2.88551,3465.6,3465.1,2.4384]
[1719891784579,2.88559,3465.5,3465.1,0.819]
[1719891785285,2.88559,3465.5,3464.8,10.43]
[1719891785458,2.88559,3465.5,3465.0,0.819]
[1719891785788,2.88559,3465.5,3464.9,3.0]
[1719891785789,2.88569,3465.4,3465.1,0.819]
[1719891786557,2.88569,3465.4,3464.9,3.0]
[1719891786737,2.88569,3465.4,3465.1,0.819]
[1719891786937,2.88569,3465.4,3465.2,0.55]
[1719891788771,2.88575,3465.3,3464.9,3.819]
[1719891788958,2.88575,3465.3,3465.0,0.55]
[1719891789937,2.88587,3465.2,3464.9,3.0]
[1719891790062,2.88587,3465.2,3464.8,3.819]
[1719891790259,2.88587,3465.2,3464.9,0.55]
[1719891796202,0.577156,3465.2,3464.0,2.4042]
[1719891796372,2.88623,3464.8,3464.2,0.819]
[1719891796772,5.22602,3465.0,3464.2,0.819]
[1719891797000,5.22602,3465.0,3464.4,0.819]
[1719891797206,2.88622,3464.8,3464.4,0.819]
[1719891797507,2.88625,3464.7,3464.4,0.819]
[1719891800404,2.88608,3464.9,3464.4,0.819]
[1719891801427,2.88627,3464.7,3464.4,0.819]
[1719891802286,2.88627,3464.7,3464.2,0.64047215]
[1719891802491,2.88627,3464.7,3464.3,1.369]
[1719891803098,2.88593,3465.1,3464.5,0.819]
[1719891803297,2.886,3465.0,3464.7,0.819]
[1719891803830,2.88588,3465.2,3464.7,0.819]
[1719891804197,2.88594,3465.1,3464.7,0.819]
[1719891805464,7.36,3465.8,3464.9,0.819]
[1719891805735,2.88572,3465.4,3465.1,0.819]
[1719891806198,2.88572,3465.4,3464.9,0.819]
[1719891807540,2.88558,3465.6,3465.1,0.819]
[1719891807745,2.88535,3465.8,3465.3,0.819]
[1719891808247,2.88506,3466.2,3465.7,0.819]
[1719891809135,2.88477,3466.5,3465.7,0.819]
[1719891809841,2.88492,3466.3,3465.7,2.2951]
[1719891810003,2.88477,3466.5,3465.8,0.05770009]
[1719891810208,2.88483,3466.4,3465.7,2.868167]
[1719891810403,2.88483,3466.4,3465.8,0.55]
[1719891810637,2.88483,3466.4,3465.9,0.05769896]
[1719891811141,2.88473,3466.6,3465.9,0.05769896]
[1719891811308,2.88467,3466.6,3465.9,0.05769896]
[1719891811502,2.88467,3466.6,3465.9,0.98236756]
[1719891811702,2.88467,3466.6,3465.9,0.9246686]
[1719891812111,2.88478,3466.5,3465.9,0.9246686]
[1719891812314,2.88478,3466.5,3465.8,3.43532]
[1719891813946,2.88478,3466.5,3465.8,0.55]
[1719891814536,2.88486,3466.4,3465.8,0.55]
[1719891816354,2.88492,3466.3,3465.8,0.55]
[1719891819656,2.88484,3466.4,3465.8,1.123058]
[1719891820845,2.88492,3466.3,3465.8,1.123058]
[1719891821149,2.88492,3466.3,3465.8,0.55]
[1719891822282,2.88508,3466.2,3465.8,0.55]
[1719891822587,2.88508,3466.2,3465.5,0.55]
[1719891824049,2.88508,3466.1,3465.5,0.55]
[1719891825781,2.88517,3466.0,3465.5,0.55]
[1719891826022,2.88523,3466.0,3465.5,0.55]
[1719891827616,2.88485,3466.4,3465.6,2.4174]
[1719891827825,2.88485,3466.4,3465.7,0.55]
[1719891827983,2.88485,3466.4,3465.7,3.55]
[1719891828448,2.88492,3466.3,3465.7,3.55]
[1719891829618,2.88523,3466.0,3465.7,3.0]
[1719891829800,5.77046,3466.0,3465.6,0.817]
[1719891830633,2.88526,3465.9,3465.6,0.817]
[1719891831359,2.88526,3465.9,3465.3,3.0]
[1719891831648,2.88526,3465.9,3465.4,1.367]
[1719891833610,2.88526,3465.9,3465.4,0.55]
[1719891833820,2.88526,3465.9,3465.5,0.817]
[1719891834003,2.88543,3465.7,3465.4,0.55]
[1719891835647,2.88543,3465.7,3465.5,0.817]
[1719891837036,2.88543,3465.7,3465.3,3.0]
[1719891837037,2.88543,3465.7,3465.3,3.817]
[1719891837908,2.88551,3465.6,3465.3,3.817]
[1719891839657,2.88543,3465.7,3465.3,3.817]
[1719891839868,2.8855,3465.6,3465.3,3.817]
[1719891840348,2.88543,3465.7,3464.9,2.3871]
[1719891840349,2.88559,3465.5,3464.9,2.3871]
[1719891840562,2.88559,3465.5,3465.1,0.817]
[1719891840716,2.88559,3465.5,3465.2,0.55]
[1719891840918,2.88575,3465.3,3465.0,3.0]
[1719891841209,2.88589,3465.2,3464.6,5.3345]
[1719891841448,2.88589,3465.2,3464.9,0.817]
[1719891841841,2.88575,3465.3,3464.9,0.817]
[1719891842048,2.88559,3465.5,3464.9,0.817]
[1719891842049,2.88584,3465.2,3464.9,0.817]
[1719891843110,2.4568,3465.6,3464.9,0.817]
[1719891843324,2.70248,3465.6,3464.9,0.817]
[1719891845778,2.70248,3465.6,3464.7,3.0]
[1719891845996,2.70248,3465.6,3464.8,0.817]
[1719891847498,2.70248,3465.6,3464.7,3.0]
[1719891847691,2.70248,3465.6,3464.6,2.3345]
[1719891847692,2.70248,3465.6,3464.8,0.817]
[1719891847903,0.351948,3465.5,3464.8,0.817]
[1719891848189,0.351948,3465.5,3464.7,3.0]
[1719891848503,0.351948,3465.5,3464.8,0.817]
[1719891848647,0.351948,3465.5,3464.7,3.0]
[1719891848848,0.351948,3465.5,3464.7,0.817]
[1719891849049,0.2808748,3465.4,3464.7,3.817]
[1719891849501,2.88599,3465.1,3464.7,3.817]
[1719891850372,2.88599,3465.1,3465.0,0.817]
[1719891852508,2.88575,3465.3,3465.0,0.817]
[1719891858115,2.88587,3465.2,3465.0,0.817]
[1719891858780,2.88575,3465.3,3465.0,0.817]
[1719891859109,2.88591,3465.1,3465.0,0.817]
[1719891860206,2.88591,3465.1,3464.5,3.0]
[1719891860384,2.886,3465.0,3464.9,0.817]
[1719891864415,2.886,3465.0,3464.8,0.817]
[1719891879998,2.88608,3464.9,3464.4,2.4955]
[1719891880198,2.88608,3464.9,3464.6,0.817]
[1719891880418,2.88622,3464.8,3464.6,0.817]
[1719891881626,2.88622,3464.8,3464.4,2.4955]
[1719891881832,2.88622,3464.8,3464.7,0.817]
[1719891882838,2.88625,3464.7,3464.2,5.3302]
[1719891883004,2.88625,3464.7,3464.5,0.817]
[1719891884757,2.88625,3464.7,3464.2,5.3302]
[1719891884758,2.8865,3464.4,3464.2,3.0]
[1719891884954,2.88633,3464.6,3464.3,0.817]
[1719891885250,2.88642,3464.5,3464.3,0.817]
[1719891889866,2.88626,3464.7,3464.3,0.817]
[1719891890044,2.88633,3464.6,3464.3,0.817]
[1719891890568,2.3219,3465.1,3464.5,0.817]
[1719891890732,3.737,3466.7,3464.5,0.817]
[1719891890733,0.817,3465.5,3464.5,0.817]
[1719891890934,0.817,3465.5,3464.2,2.3302]
[1719891890935,2.88602,3465.0,3464.7,0.817]
[1719891891132,2.88602,3465.0,3464.5,0.817]
[1719891893050,2.88633,3464.6,3464.1,2.67639059]
[1719891893362,2.88633,3464.6,3464.4,0.817]
[1719891896361,2.88633,3464.6,3464.2,3.0]
[1719891896516,2.88633,3464.6,3464.4,0.817]
[1719891898733,2.88618,3464.8,3464.4,0.817]
[1719891898938,2.88625,3464.7,3464.2,3.0]
[1719891899137,2.88625,3464.7,3464.5,0.817]
[1719891900459,2.88625,3464.7,3464.2,3.0]
[1719891900627,2.88625,3464.7,3464.1,2.3821]
[1719891900628,2.88625,3464.7,3464.1,5.3821]
[1719891900828,2.88625,3464.7,3464.4,0.817]
[1719891904161,2.88625,3464.7,3464.2,0.817]
[1719891905532,5.77258,3464.7,3464.0,0.29468801]
[1719891905731,5.77258,3464.7,3464.3,0.817]
[1719891906232,2.88642,3464.5,3464.0,3.0]
[1719891906534,2.88642,3464.5,3463.9,2.2858]
[1719891906535,2.88642,3464.5,3464.1,0.817]
[1719891908063,2.88642,3464.5,3464.0,3.0]
[1719891908357,2.88652,3464.4,3464.2,0.817]
[1719891908867,2.88642,3464.5,3463.9,2.57307416]
[1719891908868,2.88658,3464.3,3463.9,2.57307416]
[1719891909029,2.88658,3464.3,3464.2,0.817]
[1719891910979,2.88642,3464.5,3464.2,0.817]
[1719891911127,2.88586,3465.2,3464.4,0.817]
[1719891911331,2.88606,3465.0,3464.9,0.817]
[1719891911533,2.88611,3464.9,3464.7,0.817]
[1719891911763,2.88577,3465.3,3464.7,0.817]
[1719891911971,2.88583,3465.2,3465.0,0.817]
[1719891912185,2.88591,3465.1,3465.0,0.817]
[1719891912978,2.88591,3465.1,3465.0,0.789]
[1719891916668,2.88589,3465.2,3464.4,5.21219]
[1719891916980,2.88589,3465.2,3464.7,0.817]
[1719891917473,2.88592,3465.1,3464.7,0.817]
[1719891917970,2.88618,3464.8,3464.0,5.19902]
[1719891918169,2.88618,3464.8,3464.5,0.817]
[1719891921757,2.88625,3464.7,3464.5,0.817]
[1719891921959,2.88625,3464.7,3464.0,2.3122]
[1719891922150,2.88625,3464.7,3464.3,0.817]
[1719891922151,2.88649,3464.5,3464.3,0.817]
[1719891922355,2.8865,3464.4,3464.0,2.3122]
[1719891922583,2.8865,3464.4,3464.2,0.817]
[1719891922895,2.8865,3464.4,3464.0,2.3122]
[1719891923089,2.8865,3464.4,3464.3,0.817]
[1719891926473,2.88625,3464.7,3464.3,0.817]
[1719891926777,2.88625,3464.7,3464.6,0.817]
[1719891926972,2.88623,3464.8,3464.6,0.817]
[1719891930708,2.886,3465.0,3464.6,0.817]
[1719891930895,2.886,3465.0,3464.8,0.817]
[1719891931593,2.88608,3464.9,3464.8,0.817]
[1719891931802,2.88608,3464.9,3464.6,0.817]
[1719891932172,2.886,3465.0,3464.6,0.817]
[1719891935417,2.88609,3464.9,3464.6,0.817]
[1719891936889,0.822973,3465.0,3464.6,0.817]